bitfinex/quotes_ETHUSD_20250904
["timestamp","ask_amount","ask_price","bid_price","bid_amount"]
[1757026458346,4.99218006,4333.5,4333.4,4.1608]
[1757026458552,0.001,4333.5,4333.4,8.37732657]
[1757026460846,0.001,4333.5,4333.4,6.5836568]
[1757026463947,0.001,4333.5,4333.4,7.0830568]
[1757026464143,0.001,4333.5,4333.4,7.5488568]
[1757026467951,0.001,4333.5,4333.4,7.0830568]
[1757026468830,0.001,4333.5,4333.4,7.5488568]
[1757026469159,0.001,4333.5,4333.4,8.7046171]
[1757026473053,0.001,4333.5,4333.4,9.2819171]
[1757026477055,0.001,4333.5,4333.4,8.8161171]
[1757026477255,0.001,4333.5,4333.4,8.3167171]
[1757026477460,0.001,4333.5,4333.4,9.2819171]
[1757026477833,0.001,4333.5,4333.4,8.8161171]
[1757026481238,0.001,4333.5,4333.4,9.2690171]
[1757026482261,0.001,4333.5,4333.4,8.8161171]
[1757026482762,0.001,4333.5,4333.4,9.2690171]
[1757026483267,0.001,4333.5,4333.4,8.8161171]
[1757026483434,0.001,4333.5,4333.4,9.2690171]
[1757026484345,0.001,4333.5,4333.4,8.0029171]
[1757026484750,0.001,4333.5,4333.4,8.3024171]
[1757026487572,0.3005,4333.5,4333.4,8.0029171]
[1757026487741,0.7655,4333.5,4333.4,8.0029171]
[1757026488063,0.3005,4333.5,4333.4,8.0029171]
[1757026489764,0.001,4333.5,4333.4,8.0029171]
[1757026490643,0.3005,4333.5,4333.4,8.0029171]
[1757026490849,0.7655,4333.5,4333.4,6.8471568]
[1757026493555,0.3005,4333.5,4333.4,6.8471568]
[1757026495285,0.001,4333.5,4333.4,6.8471568]
[1757026496369,0.001,4333.5,4333.4,7.1466568]
[1757026497855,0.001,4333.5,4333.4,6.8471568]
[1757026498381,0.001,4333.5,4333.4,9.1581568]
[1757026501192,0.001,4333.5,4333.4,9.4576568]
[1757026501405,0.001,4333.5,4333.4,11.3884771]
[1757026501558,0.001,4333.5,4333.4,11.8413771]
[1757026505512,0.001,4333.5,4333.4,9.5303771]
[1757026512084,1e-08,4334.0,4333.9,2.30739057]
[1757026512308,1e-08,4334.0,4333.9,16.30371897]
[1757026512612,1e-08,4334.0,4333.9,17.61014507]
[1757026512818,1e-08,4334.0,4333.9,18.07724507]
[1757026513682,1e-08,4334.0,4333.9,10.98138466]
[1757026513906,1e-08,4334.0,4333.9,11.40948466]
[1757026514919,1e-08,4334.0,4333.9,10.98138466]
[1757026515418,1e-08,4334.0,4333.9,11.40948466]
[1757026517820,1e-08,4334.0,4333.9,13.72048466]
[1757026518689,1e-08,4334.0,4333.9,13.71948466]
[1757026522603,1e-08,4334.0,4333.9,12.81718466]
[1757026523625,1e-08,4334.0,4333.9,17.80546627]
[1757026524413,1e-08,4334.0,4333.9,18.70776627]
[1757026528636,1e-08,4334.0,4333.9,16.39676627]
[1757026533644,1e-08,4334.0,4333.9,15.65666627]
[1757026534344,1e-08,4334.0,4333.9,16.44866627]
[1757026538532,1e-08,4334.0,4333.9,16.76066627]
[1757026538944,1e-08,4334.0,4333.9,17.22426627]
[1757026539851,0.4805,4334.8,4334.6,2.30701794]
[1757026540050,0.4805,4334.8,4334.7,8.43000178]
[1757026540254,0.4805,4334.8,4334.7,10.7369665]
[1757026540564,0.7909,4334.8,4334.7,11.43045499]
[1757026541455,0.3354,4334.8,4334.7,11.43045499]
[1757026542176,0.7953,4334.8,4334.7,11.43045499]
[1757026543545,0.7953,4334.8,4334.7,9.119455]
[1757026547742,1.24,4334.8,4334.7,9.119455]
[1757026549946,1.24,4334.8,4334.7,8.65765321]
[1757026550583,0.3354,4334.8,4334.7,13.64593482]
[1757026550950,0.3354,4334.8,4334.7,8.65765321]
[1757026551156,0.3364,4334.8,4334.7,8.65765321]
[1757026551480,0.7811,4334.8,4334.7,9.75412032]
[1757026556282,1.241,4334.8,4334.7,9.75412032]
[1757026558186,0.026,4334.8,4334.7,10.06202032]
[1757026558569,0.3364,4334.8,4334.7,9.75412032]
[1757026559177,0.026,4334.8,4334.7,9.75412032]
[1757026559488,0.026,4334.8,4334.7,10.06202032]
[1757026559997,0.026,4334.8,4334.7,10.53832032]
[1757026560965,0.4697,4335.8,4335.7,2.30643264]
[1757026561311,0.025,4335.8,4335.7,8.42492675]
[1757026561519,0.7801,4335.8,4335.7,8.42492675]
[1757026561663,0.7801,4335.8,4335.7,8.89462675]
[1757026562068,1.24,4335.8,4335.7,8.89462675]
[1757026562479,0.7801,4335.8,4335.7,8.89462675]
[1757026563071,1.24,4335.8,4335.7,8.89462675]
[1757026564773,1.24,4335.8,4335.7,5.05262675]
[1757026565072,1.24,4335.8,4335.7,8.89362675]
[1757026566606,0.7801,4335.8,4335.7,8.89362675]
[1757026569194,0.7811,4335.8,4335.7,8.89362675]
[1757026570222,0.026,4335.8,4335.7,9.19952675]
[1757026570432,0.026,4335.8,4335.7,10.12182675]
[1757026570622,0.026,4335.8,4335.7,9.65092675]
[1757026570817,1e-08,4335.8,4335.7,9.65092675]
[1757026571027,1e-08,4335.8,4335.7,10.12182675]
[1757026572002,1e-08,4336.1,4336.0,2.30627306]
[1757026572201,1e-08,4336.1,4336.0,7.99258285]
[1757026572436,1e-08,4336.1,4336.0,8.29848285]
[1757026572636,1e-08,4336.1,4336.0,8.77988285]
[1757026573208,1e-08,4336.1,4336.0,8.47398285]
[1757026575720,0.29040001,4336.1,4336.0,8.47398285]
[1757026576514,1e-08,4336.1,4336.0,8.47398285]
[1757026580826,1e-08,4336.1,4336.0,8.77988285]
[1757026581032,1e-08,4336.1,4336.0,11.47398285]
[1757026584746,0.29040001,4336.1,4336.0,7.63298285]
[1757026585053,1.21120001,4336.1,4336.0,3.845]
[1757026587970,1.21120001,4336.1,4336.0,6.15127306]
[1757026588552,1e-08,4336.1,4336.0,6.45717306]
[1757026588869,1e-08,4336.1,4336.0,8.26620531]
[1757026589262,1e-08,4336.1,4336.0,8.71760531]
[1757026589563,1e-08,4336.1,4336.0,8.26620531]
[1757026589888,1e-08,4336.1,4336.0,9.18850531]
[1757026592543,1e-08,4336.1,4336.0,12.18850531]
[1757026592777,1e-08,4336.1,4336.0,12.98050531]
[1757026592979,1e-08,4336.1,4336.0,8.66460531]
[1757026593149,1e-08,4336.8,4336.0,12.99250531]
[1757026593352,1e-08,4336.8,4336.7,2.3059008]
[1757026593649,1e-08,4336.8,4336.7,10.8619008]
[1757026593850,1e-08,4336.8,4336.7,12.0901008]
[1757026594375,1e-08,4336.8,4336.7,13.05499116]
[1757026594881,1e-08,4336.8,4336.7,13.17019116]
[1757026595078,1e-08,4336.8,4336.7,13.92580802]
[1757026595379,1e-08,4336.8,4336.7,13.77291766]
[1757026595583,1e-08,4336.8,4336.7,5.97361766]
[1757026595753,1e-08,4336.8,4336.7,7.9971008]
[1757026595754,0.29040001,4336.8,4336.7,7.9971008]
[1757026596544,1.21120001,4336.8,4336.7,5.6922]
[1757026596876,0.72980001,4336.8,4336.7,7.9981008]
[1757026598378,1.21120001,4336.8,4336.7,4.81332809]
[1757026598582,1.21120001,4336.8,4336.7,6.38542729]
[1757026598980,1.21120001,4336.8,4336.7,6.38342729]
[1757026599455,3.51704763,4336.8,4336.7,2.50742729]
[1757026599653,1.21120001,4336.8,4336.7,5.575]
[1757026600183,1.21120001,4336.8,4336.7,5.6902]
[1757026602780,1e-08,4336.8,4336.7,7.9961008]
[1757026603271,1e-08,4336.8,4336.7,8.4704008]
[1757026603448,1e-08,4336.8,4336.7,8.7692008]
[1757026603648,1e-08,4336.8,4336.7,8.4704008]
[1757026604281,1e-08,4336.8,4336.7,8.7692008]
[1757026604653,0.00100001,4336.8,4336.7,8.7692008]
[1757026606659,0.00100001,4336.8,4336.7,8.4704008]
[1757026606861,0.76340001,4336.8,4336.7,6.1645]
[1757026607187,0.29620001,4336.8,4336.7,8.4704008]
[1757026607786,0.00100001,4336.8,4336.7,8.4704008]
[1757026608287,0.00100001,4336.8,4336.7,11.08020079]
[1757026608470,0.00100001,4336.8,4336.7,12.4188198]
[1757026611793,0.00100001,4336.8,4336.7,10.89421981]
[1757026612001,0.00100001,4336.8,4336.7,14.00941981]
[1757026614294,0.00100001,4336.8,4336.7,13.55851981]
[1757026614514,0.00100001,4336.8,4336.7,14.00941981]
[1757026614700,0.025,4337.8,4337.7,2.3053692]
[1757026614874,0.025,4337.8,4337.7,11.18490612]
[1757026615195,0.025,4337.8,4337.7,12.04980612]
[1757026615407,0.025,4337.8,4337.7,9.04270612]
[1757026615578,0.025,4337.8,4337.7,13.20805472]
[1757026616311,0.025,4338.8,4338.7,2.30483785]
[1757026616480,0.025,4338.8,4338.7,8.40067024]
[1757026616811,0.025,4338.8,4338.7,12.71627024]
[1757026617030,0.025,4339.8,4339.4,2.30446605]
[1757026617239,0.003,4340.6,4339.4,2.30446605]
[1757026617240,0.003,4340.6,4340.2,2.30404128]
[1757026617526,0.4702,4340.3,4340.2,5.8653486]
[1757026617695,0.7654,4340.3,4340.2,8.26174335]
[1757026617892,0.7654,4340.3,4340.2,8.37694335]
[1757026618313,0.003,4340.3,4340.2,9.62865063]
[1757026618517,0.7654,4340.3,4340.2,2.12090207]
[1757026618696,0.7654,4340.3,4340.2,8.37794335]
[1757026619019,1.2397,4340.3,4340.2,2.12090207]
[1757026619192,0.2982,4340.3,4340.2,8.37694335]
[1757026619399,0.7654,4340.3,4340.2,8.37585264]
[1757026619584,0.7654,4340.3,4340.2,6.07181136]
[1757026619786,1.2397,4340.3,4340.2,6.07181136]
[1757026620687,7.10743453,4340.3,4340.2,6.07181136]
[1757026620890,1.2397,4340.3,4340.2,6.07181136]
[1757026621097,0.2982,4340.3,4340.2,6.07181136]
[1757026621507,0.2982,4340.3,4340.2,8.37585264]
[1757026621888,0.2982,4340.3,4340.2,6.07181136]
[1757026622224,0.2982,4340.3,4340.2,8.37585264]
[1757026622394,0.2982,4340.3,4340.2,6.07181136]
[1757026622586,0.7654,4340.3,4340.2,6.07181136]
[1757026623395,0.7664,4340.3,4340.2,6.07181136]
[1757026623587,0.7664,4340.3,4340.2,8.37585264]
[1757026623788,0.7664,4340.3,4340.2,8.44796339]
[1757026623986,0.7664,4340.3,4340.2,6.14392211]
[1757026624609,0.2992,4340.3,4340.2,8.44796339]
[1757026624806,0.004,4340.3,4340.2,9.82197324]
[1757026625010,0.004,4340.3,4340.2,10.72357324]
[1757026625515,0.004,4340.3,4340.2,9.52317324]
[1757026625708,0.004,4340.3,4340.2,9.82197324]
[1757026627395,0.004,4340.3,4340.2,10.72357324]
[1757026627736,0.004,4340.3,4340.2,19.03157324]
[1757026628894,0.004,4340.3,4340.2,19.03044349]
[1757026629313,0.003,4340.6,4340.5,2.30388204]
[1757026631632,1e-08,4340.8,4340.7,10.85621477]
[1757026632326,1e-08,4340.8,4340.7,10.85598896]
[1757026632626,1e-08,4340.8,4340.7,9.94768896]
[1757026632814,1e-08,4340.8,4340.7,11.39963686]
[1757026633020,1e-08,4340.8,4340.7,12.30793686]
[1757026635540,0.4714,4341.8,4340.7,12.30793686]
[1757026635541,0.025,4341.8,4341.7,2.30324527]
[1757026635705,0.025,4341.8,4341.7,8.22525835]
[1757026636039,0.025,4341.8,4341.7,8.34045835]
[1757026636342,0.025,4342.8,4342.7,2.3027149]
[1757026636504,0.025,4342.8,4342.7,8.26781723]
[1757026636703,0.3212,4342.8,4342.7,8.33992798]
[1757026637115,0.025,4342.8,4342.7,8.64062798]
[1757026637648,0.025,4342.8,4342.7,9.28622724]
[1757026637851,0.3212,4342.8,4342.7,8.98552724]
[1757026638256,0.025,4342.8,4342.7,9.76612724]
[1757026638457,0.025,4342.8,4342.7,12.76612724]
[1757026638753,0.7676,4342.8,4342.7,4.39992798]
[1757026638918,0.7676,4342.8,4342.7,8.33692798]
[1757026639120,0.3212,4342.8,4342.7,8.33692798]
[1757026639522,0.025,4342.8,4342.7,8.63762798]
[1757026639732,0.025,4342.8,4342.7,8.33692798]
[1757026640037,0.3212,4342.8,4342.7,9.02912199]
[1757026640671,1.2235,4342.8,4342.7,1.09140709]
[1757026640843,1.2235,4342.8,4342.7,4.81450476]
[1757026641042,1.2235,4342.8,4342.7,4.33421308]
[1757026641238,1.2235,4342.8,4342.7,4.33452885]
[1757026641444,3.52616187,4342.8,4342.7,4.33352885]
[1757026641675,3.52616187,4342.8,4342.7,4.0492]
[1757026641874,1.2235,4342.8,4342.7,3.934]
[1757026642082,1.2235,4342.8,4342.7,4.0492]
[1757026642247,1.2235,4342.8,4342.7,4.12128103]
[1757026643148,1.2245,4342.8,4342.7,4.12128103]
[1757026643345,0.026,4342.8,4342.7,7.23611131]
[1757026643866,0.026,4342.8,4342.7,7.53681131]
[1757026644190,0.3222,4342.8,4342.7,7.23611131]
[1757026644355,0.026,4342.8,4342.7,7.23611131]
[1757026644769,0.026,4342.8,4342.7,7.53681131]
[1757026645486,10.5011333,4343.0,4342.9,2.30260885]
[1757026645673,10.5011333,4343.0,4342.9,7.6413219]
[1757026645873,10.7973333,4343.0,4342.9,7.3406219]
[1757026646076,10.7973333,4343.0,4342.9,6.30868988]
[1757026646250,11.2437333,4343.0,4342.9,6.30866904]
[1757026646454,10.7973333,4343.0,4342.9,6.30866904]
[1757026647004,11.6996333,4343.0,4342.9,4.00506019]
[1757026647667,10.7973333,4343.0,4342.9,6.30766904]
[1757026648072,11.2437333,4343.0,4342.9,6.30766904]
[1757026648600,11.2437333,4343.0,4342.9,6.99994611]
[1757026649494,10.5011333,4343.0,4342.9,7.30064611]
[1757026649670,10.5011333,4343.0,4342.9,8.38770198]
[1757026650272,10.5011333,4343.0,4342.9,9.29600198]
[1757026650471,10.35125888,4343.0,4342.9,9.29600198]
[1757026650871,5.06384757,4343.0,4342.9,12.29600198]
[1757026651800,0.025,4343.8,4343.7,2.30218477]
[1757026651968,0.025,4343.8,4343.7,8.46368954]
[1757026652172,0.3212,4343.8,4343.7,4.64688954]
[1757026652505,0.025,4343.8,4343.7,8.57988954]
[1757026653169,0.3212,4343.8,4343.7,4.18644496]
[1757026653371,0.7676,4343.8,4343.7,5.81726019]
[1757026653696,1.2235,4343.8,4343.7,5.81626019]
[1757026654089,1.2235,4343.8,4343.7,1.88426019]
[1757026654265,1.2235,4343.8,4343.7,5.81626019]
[1757026654465,1.2235,4343.8,4343.7,1.88426019]
[1757026654763,1.2235,4343.8,4343.7,8.11844496]
[1757026654764,0.3212,4343.8,4343.7,8.11844496]
[1757026655687,1.2235,4343.8,4343.7,1.88426019]
[1757026655898,1.2235,4343.8,4343.7,5.81626019]
[1757026656466,1.2235,4343.8,4343.7,1.88426019]
[1757026656674,1.2235,4343.8,4343.7,5.81626019]
[1757026656902,1.34585,4343.8,4343.7,5.81626019]
[1757026657099,3.64798177,4343.8,4343.7,1.88426019]
[1757026657289,3.64798177,4343.8,4343.7,5.70106019]
[1757026657290,3.76318177,4343.8,4343.7,5.70106019]
[1757026657797,3.76318177,4343.8,4343.7,1.76906019]
[1757026658097,3.76318177,4343.8,4343.7,5.483]
[1757026658298,3.76318177,4343.8,4343.7,5.55506888]
[1757026658597,3.76318177,4343.8,4343.7,5.70006888]
[1757026659000,0.3212,4343.8,4343.7,5.70006888]
[1757026660014,0.025,4343.8,4343.7,8.29305365]
[1757026660208,0.025,4343.8,4343.7,8.76733575]
[1757026660811,0.025,4343.8,4343.7,9.19603575]
[1757026661123,0.025,4343.8,4343.7,10.82928752]
[1757026661923,0.025,4343.8,4343.7,13.82928752]
[1757026662430,0.01,4344.8,4343.7,13.82928752]
[1757026662592,0.01,4344.8,4344.7,0.1152]
[1757026662791,0.01,4344.8,4344.7,4.11925098]
[1757026663018,0.7757,4344.8,4344.7,4.11925098]
[1757026663221,0.323,4344.8,4344.7,4.11925098]
[1757026663520,0.01,4344.8,4344.7,4.41005098]
[1757026663722,0.01,4344.8,4344.7,4.11925098]
[1757026664104,0.323,4344.8,4344.7,4.11925098]
[1757026664629,0.01,4344.8,4344.7,7.76763096]
[1757026664797,0.01,4344.8,4344.7,8.08113096]
[1757026664994,0.01,4344.8,4344.7,7.65243096]
[1757026665312,0.01,4344.8,4344.7,8.08113096]
[1757026666093,0.05,4345.8,4345.7,2.30112525]
[1757026666292,0.05,4345.8,4345.7,8.23028876]
[1757026666590,0.05,4345.8,4345.7,8.52108876]
[1757026666791,0.05,4345.8,4345.7,8.99298876]
[1757026666995,0.05,4345.8,4345.7,9.46728876]
[1757026667196,0.05,4345.8,4345.7,8.99298876]
[1757026667392,0.05,4345.8,4345.7,6.69186351]
[1757026667592,0.05,4345.8,4345.7,8.99298876]
[1757026667904,0.05,4345.8,4345.7,9.89598876]
[1757026668318,0.05,4345.8,4345.7,12.46728876]
[1757026668517,0.05,4345.8,4345.7,12.89598876]
[1757026668899,0.05,4345.8,4345.7,12.82393778]
[1757026669129,0.05,4345.8,4345.7,8.89393778]
[1757026669428,0.05,4345.8,4345.7,12.41323778]
[1757026669598,0.05,4345.8,4345.7,12.84193778]
[1757026669799,0.05,4345.8,4345.7,12.84393778]
[1757026669994,0.05,4345.8,4345.7,12.41523778]
[1757026670194,0.05,4345.8,4345.7,6.1189]
[1757026670409,0.363,4345.8,4345.7,6.1189]
[1757026670616,0.363,4345.8,4345.7,1.697]
[1757026670905,0.05,4345.8,4345.7,6.3695]
[1757026671117,0.05,4345.8,4345.7,5.9408]
[1757026671317,0.05,4345.8,4345.7,9.80818076]
[1757026672048,0.71670085,4348.8,4347.7,2.3000667]
[1757026672232,4.16357728,4350.7,4348.7,2.5903205]
[1757026672409,0.41885773,4350.6,4350.5,2.29858636]
[1757026672610,0.7657,4350.6,4350.5,4.648]
[1757026672810,0.7657,4350.6,4350.5,6.94658636]
[1757026673543,0.313,4350.6,4350.5,8.10758636]
[1757026673754,0.4527,4351.3,4350.7,2.1984807]
[1757026674047,0.4527,4352.3,4350.7,8.1054807]
[1757026674249,0.4617,4352.2,4350.7,4.7595807]
[1757026674544,0.4527,4351.9,4350.7,8.8795807]
[1757026674716,0.4527,4351.9,4350.7,8.9947807]
[1757026674912,0.4527,4351.6,4350.7,9.20525779]
[1757026675312,0.4527,4351.6,4350.7,2.02167709]
[1757026675523,0.338,4350.8,4350.7,4.44667709]
[1757026675722,0.025,4350.8,4350.7,4.44667709]
[1757026676546,0.338,4350.8,4350.7,4.44667709]
[1757026676752,0.338,4350.8,4350.7,5.09657709]
[1757026676753,0.025,4350.8,4350.7,5.09657709]
[1757026676950,0.025,4350.8,4350.7,7.51025779]
[1757026677154,0.025,4350.8,4350.7,7.93895779]
[1757026677355,0.025,4350.8,4350.7,10.93895779]
[1757026677557,0.025,4350.8,4350.7,10.9380181]
[1757026678142,0.025,4350.8,4350.7,0.5003374]
[1757026678369,0.338,4350.8,4350.7,7.0787181]
[1757026678670,0.025,4350.8,4350.7,7.0787181]
[1757026680038,0.025,4350.8,4350.7,4.7802374]
[1757026680239,0.338,4350.8,4350.7,0.6622374]
[1757026680443,0.7907,4350.8,4350.7,4.7772374]
[1757026681070,0.338,4350.8,4350.7,4.5677]
[1757026681891,0.7907,4350.8,4350.7,4.5677]
[1757026682188,0.338,4350.8,4350.7,4.5677]
[1757026682478,0.7917,4350.8,4350.7,4.5677]
[1757026682887,0.7917,4350.8,4350.7,0.4527]
[1757026683041,0.026,4350.8,4350.7,4.111]
[1757026683242,0.026,4350.8,4350.7,4.80197438]
[1757026683444,0.026,4350.8,4350.7,5.01101612]
[1757026683671,0.026,4350.8,4350.7,4.80197438]
[1757026683898,0.7917,4350.8,4350.7,4.79497438]
[1757026684545,0.7917,4350.8,4350.7,4.104]
[1757026685096,0.339,4350.8,4350.7,4.104]
[1757026685242,0.026,4350.8,4350.7,4.104]
[1757026685671,0.026,4350.8,4350.7,4.31311582]
[1757026686844,0.026,4350.8,4350.7,6.90239652]
[1757026687045,0.026,4350.8,4350.7,7.80539652]
[1757026687845,1e-08,4351.8,4351.7,2.29795252]
[1757026688099,0.025,4352.8,4351.8,3.792]
[1757026688391,0.025,4352.8,4352.7,0.1152]
[1757026688548,0.025,4352.8,4352.7,6.16731582]
[1757026688743,0.338,4352.8,4352.7,2.01831582]
[1757026689095,3.5655718,4352.8,4352.7,4.149]
[1757026689247,1.2682,4352.8,4352.6,4.149]
[1757026689579,2.76592458,4352.7,4352.6,4.149]
[1757026689744,3.54422458,4352.7,4352.6,4.149]
[1757026690076,2.29747736,4352.6,4352.5,0.1152]
[1757026690375,2.29747736,4352.6,4352.5,4.2642]
[1757026690376,3.22767736,4352.6,4352.5,4.2642]
[1757026690587,3.22767736,4352.6,4352.0,1.694]
[1757026690588,2.29753015,4352.5,4352.4,4.147]
[1757026690789,2.29758294,4352.4,4352.3,4.147]
[1757026690991,3.08268294,4352.4,4352.3,4.147]
[1757026691193,3.08268294,4352.4,4352.3,4.2622]
[1757026691489,3.54438294,4352.4,4352.3,4.2622]
[1757026692094,3.08268294,4352.4,4352.3,4.2622]
[1757026692768,0.7851,4352.4,4352.3,4.2622]
[1757026693086,3.08268294,4352.4,4352.3,4.2622]
[1757026693864,3.08268294,4352.4,4352.3,4.2542]
[1757026694097,0.025,4352.8,4352.7,2.29742458]
[1757026694316,0.025,4352.8,4352.7,7.18142458]
[1757026694780,0.025,4352.8,4352.7,7.61472458]
[1757026694983,0.025,4352.8,4352.7,7.23042458]
[1757026695172,0.025,4352.8,4352.7,7.66372458]
[1757026695497,0.025,4352.8,4352.7,7.87341639]
[1757026695695,0.025,4352.8,4352.7,8.56392001]
[1757026696193,0.025,4353.8,4353.7,2.29689689]
[1757026696393,0.025,4353.8,4353.7,6.47989689]
[1757026696580,0.025,4353.8,4353.7,7.22689689]
[1757026697285,0.025,4353.8,4353.7,6.76439689]
[1757026697880,0.025,4353.8,4353.7,7.45484647]
[1757026698291,0.025,4353.8,4353.7,5.15794958]
[1757026698599,0.025,4353.8,4353.7,7.16834647]
[1757026699171,0.025,4353.8,4353.7,7.45484647]
[1757026699598,0.3416,4353.8,4353.7,0.69044958]
[1757026699791,0.8101,4353.8,4353.7,4.86244958]
[1757026700164,0.8101,4353.8,4353.7,4.172]
[1757026700497,3.10694413,4353.8,4353.7,4.171]
[1757026700671,2.29689689,4353.7,4352.9,1.693]
[1757026700871,2.76544686,4353.7,4353.0,4.17]
[1757026701097,2.29695013,4353.6,4353.0,4.17]
[1757026701275,0.4685,4353.7,4353.0,4.17]
[1757026701598,0.4877,4353.8,4353.6,0.2865]
[1757026701801,0.026,4353.8,4353.7,8.15889689]
[1757026702096,0.026,4353.8,4353.7,9.33919689]
[1757026703603,0.026,4353.8,4353.7,8.90589689]
[1757026703773,0.026,4353.8,4353.7,9.33919689]
[1757026704203,0.026,4353.8,4353.7,9.45639689]
[1757026704505,0.05,4354.8,4354.7,2.29636943]
[1757026704702,0.05,4354.8,4354.7,5.9792]
[1757026704902,0.3666,4354.8,4354.7,5.9792]
[1757026705103,0.8351,4354.8,4354.7,5.9792]
[1757026705306,0.8351,4354.8,4354.7,1.8082]
[1757026705616,0.8351,4354.8,4354.7,5.9792]
[1757026705776,0.8351,4354.8,4354.7,0.1152]
[1757026705977,3.5931167,4354.8,4354.7,0.1152]
[1757026706298,2.29652765,4354.4,4354.3,0.69040668]
[1757026706605,2.29681198,4353.9,4353.7,2.669]
[1757026706774,0.7851,4353.8,4353.6,4.169]
[1757026706972,4.16357728,4357.6,4353.7,1.1803]
[1757026707180,5.41265046,4359.2,4355.6,3.0]
[1757026707181,0.69062443,4358.0,4355.6,3.0]
[1757026707424,0.69062443,4358.0,4357.1,0.792]
[1757026707572,0.4685,4358.6,4357.2,6.344]
[1757026707772,0.4685,4358.6,4357.3,6.5533252]
[1757026707973,0.4685,4358.6,4358.5,0.1144]
[1757026708195,0.0242,4358.8,4358.5,0.3247252]
[1757026708380,0.0242,4358.8,4358.4,4.653]
[1757026708381,0.0242,4358.8,4358.6,0.2103252]
[1757026708581,0.0242,4358.8,4358.7,0.2103252]
[1757026708800,0.4927,4358.8,4358.4,6.346]
[1757026708980,0.34332543,4358.8,4358.4,6.346]
[1757026709181,2.31872712,4359.8,4358.4,6.346]
[1757026709383,0.025,4359.8,4358.4,6.346]
[1757026710278,0.025,4359.8,4358.5,4.673]
[1757026710996,0.4685,4359.7,4358.5,4.673]
[1757026711201,2.29404559,4359.2,4358.5,4.673]
[1757026711482,2.29423082,4358.8,4358.6,4.667]
[1757026711682,2.29413853,4359.0,4358.6,4.667]
[1757026711878,2.29420392,4358.9,4358.6,4.667]
[1757026712098,2.29423466,4358.8,4358.6,4.667]
[1757026712299,2.29378842,4359.6,4358.4,1.693]
[1757026712300,2.29427929,4358.7,4358.4,1.693]
[1757026712499,2.29378842,4359.6,4358.4,1.693]
[1757026712704,0.3166,4358.5,4358.4,1.693]
[1757026713021,2.29417259,4358.9,4358.4,1.693]
[1757026713182,2.76240752,4359.4,4358.4,1.693]
[1757026713376,0.4685,4359.4,4358.5,4.657]
[1757026713609,2.29431468,4358.6,4358.5,4.657]
[1757026713812,2.29436732,4358.5,4358.4,1.693]
[1757026714110,2.76286732,4358.5,4358.4,3.994]
[1757026714294,3.07946732,4358.5,4358.4,1.693]
[1757026715660,2.29478853,4357.7,4357.6,4.644]
[1757026716213,2.29473101,4357.9,4357.6,4.644]
[1757026716400,2.29474195,4357.8,4357.6,4.644]
[1757026716724,2.29414355,4359.0,4357.6,4.644]
[1757026716725,3.4653,4359.2,4357.8,0.025]
[1757026716922,2.29410415,4359.0,4357.8,0.025]
[1757026717128,0.3166,4357.9,4357.8,0.025]
[1757026717340,3.07978321,4357.9,4357.8,0.025]
[1757026718514,3.07658321,4357.9,4357.8,0.025]
[1757026718719,3.54508321,4357.9,4357.8,0.025]
[1757026719027,3.54508321,4357.9,4357.3,0.1144]
[1757026719234,2.29486604,4357.6,4357.3,0.1144]
[1757026719434,2.29486604,4357.6,4356.3,1.692]
[1757026719435,2.29494652,4357.4,4356.3,1.692]
[1757026719653,2.59157332,4356.4,4356.3,1.692]
[1757026719808,2.59157332,4356.4,4353.4,0.80601027]
[1757026719809,2.29611984,4355.2,4354.7,1.692]
[1757026719995,2.29600036,4355.4,4355.3,0.1152]
[1757026720294,0.2961,4355.4,4355.3,0.1152]
[1757026720494,2.59210036,4355.4,4355.3,0.1152]
[1757026721026,0.2961,4355.4,4355.3,0.1152]
[1757026721338,3.03450036,4355.4,4355.3,0.1152]
[1757026721638,3.03450036,4355.4,4354.6,1.692]
[1757026721639,2.29631102,4354.9,4354.6,1.692]
[1757026721804,2.29615657,4355.2,4354.6,1.692]
[1757026722009,2.29621554,4355.0,4354.8,0.1152]
[1757026722197,2.29605308,4355.3,4354.8,0.1152]
[1757026722391,0.4424,4355.4,4354.8,0.1152]
[1757026723126,0.2961,4354.9,4354.8,0.1152]
[1757026723419,2.29636943,4354.7,4354.6,1.692]
[1757026723630,3.0349017,4354.7,4353.9,1.692]
[1757026723797,2.29652765,4354.4,4354.3,0.1152]
[1757026723998,2.29663374,4354.2,4354.1,0.1152]
[1757026724196,0.2961,4354.2,4354.1,0.1152]
[1757026724430,2.77100676,4355.1,4354.1,0.1152]
[1757026724431,0.1152,4354.6,4354.1,0.1152]
[1757026724616,2.29653222,4354.4,4354.1,0.1152]
[1757026724819,2.41154677,4354.8,4354.1,0.1152]
[1757026725020,2.29636943,4354.7,4354.1,0.1152]
[1757026725342,0.1152,4354.8,4354.1,0.1152]
[1757026725509,2.41153225,4354.8,4354.1,0.1152]
[1757026725703,0.4424,4354.9,4353.9,1.692]
[1757026725905,2.29647491,4354.5,4354.4,0.1152]
[1757026727012,2.29638139,4354.7,4354.4,0.1152]
[1757026727212,0.4424,4354.9,4354.6,0.1152]
[1757026727213,2.29630273,4354.9,4354.6,0.1152]
[1757026727528,2.29620297,4355.1,4354.6,0.1152]
[1757026727730,2.29636943,4354.7,4354.6,0.1152]
[1757026729103,3.03486943,4354.7,4354.6,0.1152]
[1757026729532,3.03486943,4354.7,4353.9,1.692]
[1757026729533,2.29673863,4354.0,4353.9,6.27]
[1757026730435,3.03523863,4354.0,4353.9,1.692]
[1757026730733,3.03523863,4354.0,4353.5,4.6902]
[1757026730923,2.29694965,4353.6,4353.5,0.1152]
[1757026731328,3.03544965,4353.6,4353.5,0.1152]
[1757026731840,2.29710794,4353.3,4353.2,1.692]
[1757026732007,0.1152,4353.6,4353.2,1.692]